bitfinex-derivatives/quotes_ETHF0:USTF0_20240826
["timestamp","ask_amount","ask_price","bid_price","bid_amount"]
[1724681512261,0.36798,2716.8,2716.7,0.00551684]
[1724681512451,0.91977,2717.4,2716.7,0.00551684]
[1724681512658,3.57573,2717.3,2717.2,0.36793]
[1724681512961,3.2078,2717.3,2717.2,0.36793]
[1724681513164,3.57572,2717.3,2717.2,0.36793]
[1724681513563,0.36795,2717.1,2717.0,0.36795]
[1724681513762,0.91983,2717.2,2716.7,0.00551684]
[1724681514057,0.36796,2717.1,2717.0,0.36795]
[1724681515549,3.2078,2717.3,2717.2,0.36793]
[1724681515954,3.57572,2717.3,2717.2,0.36793]
[1724681516155,3.2078,2717.3,2717.2,4.04793]
[1724681516563,3.2078,2717.3,2717.2,0.36793]
[1724681516856,3.2078,2717.3,2717.2,4.04793]
[1724681517957,0.36788,2717.6,2717.2,3.68]
[1724681518157,4.55487,2717.7,2717.3,0.754]
[1724681518362,4.187,2717.7,2717.6,0.36788]
[1724681518662,0.0096548,2717.9,2717.6,0.36788]
[1724681518864,0.0096548,2717.9,2717.5,0.36788]
[1724681519159,0.36788,2717.6,2717.5,0.36788]
[1724681519349,0.36787,2717.7,2717.5,0.36788]
[1724681519763,0.36787,2717.7,2717.6,0.36788]
[1724681519972,0.3774948,2717.9,2717.3,0.754]
[1724681520258,0.3679,2717.4,2717.3,0.754]
[1724681520452,0.36788,2717.6,2717.4,0.3679]
[1724681520651,0.9292548,2717.9,2717.2,0.36793]
[1724681520851,0.36793,2717.2,2717.1,0.36794]
[1724681521056,0.91979,2717.4,2716.9,0.36796]
[1724681521257,3.2078,2717.2,2716.7,0.00551684]
[1724681521460,0.36794,2717.1,2717.0,0.36795]
[1724681521763,3.2078,2717.2,2717.1,0.36794]
[1724681522264,3.2078,2717.2,2717.0,0.36796]
[1724681522265,0.36795,2717.1,2717.0,0.36796]
[1724681522468,3.57574,2717.2,2717.1,0.36794]
[1724681522757,3.2078,2717.2,2716.8,0.3867]
[1724681522960,3.2078,2717.2,2717.1,0.36794]
[1724681523161,4.187,2717.7,2716.8,3.5945]
[1724681523352,0.36793,2717.3,2717.1,0.36794]
[1724681523555,0.91975,2717.5,2717.0,0.36795]
[1724681523854,0.91976,2717.4,2716.9,0.36796]
[1724681524054,0.36792,2717.3,2716.9,0.36797]
[1724681524362,0.91973,2717.5,2717.0,0.36795]
[1724681524563,0.36792,2717.3,2717.2,0.36792]
[1724681524754,4.187,2717.7,2716.9,0.91993]
[1724681524755,0.3679,2717.4,2716.9,0.91993]
[1724681524953,5.10668,2717.7,2717.2,0.36792]
[1724681525158,4.55487,2717.7,2717.6,0.36788]
[1724681525362,0.3895,2717.8,2716.9,2.26193003]
[1724681525363,0.91963,2717.8,2716.9,2.26193003]
[1724681525660,0.36788,2717.6,2717.5,0.36789]
[1724681525862,0.0096548,2717.9,2717.7,0.36785]
[1724681526059,0.36785,2717.8,2717.3,0.91978]
[1724681526258,0.36785,2717.8,2717.4,0.7524]
[1724681526568,0.0096548,2717.9,2717.8,0.36785]
[1724681526859,0.0096548,2717.9,2717.8,4.04705]
[1724681527254,3.2078,2718.5,2718.4,0.36777]
[1724681527460,3.2078,2718.5,2718.0,0.91956]
[1724681527461,3.57552,2718.8,2718.6,0.36773]
[1724681527656,3.2078,2718.8,2718.7,0.36773]
[1724681527965,0.36768,2719.1,2718.2,0.91949]
[1724681527966,0.36766,2719.2,2718.8,0.36771]
[1724681528153,0.36767,2719.1,2718.8,0.37106337]
[1724681528350,0.37093898,2719.2,2718.8,0.37106337]
[1724681528554,0.37093898,2719.2,2719.0,0.36768]
[1724681528555,0.00326898,2719.2,2719.0,0.36768]
[1724681528767,0.00326898,2719.2,2719.1,0.36767]
[1724681529161,0.00551684,2719.3,2719.2,0.36766]
[1724681529367,3.57537,2719.9,2719.4,0.36763]
[1724681529756,0.36758,2719.8,2719.3,0.36764]
[1724681530067,0.36759,2719.7,2719.2,0.36765]
[1724681530260,0.36761,2719.6,2719.1,0.36767]
[1724681530454,0.36761,2719.6,2718.8,0.77045337]
[1724681530654,0.36761,2719.6,2719.0,0.36768]
[1724681531058,0.00551684,2719.7,2718.8,0.77045337]
[1724681531059,0.36763,2719.5,2718.8,0.77045337]
[1724681531264,0.36761,2719.6,2718.8,0.77045337]
[1724681531466,0.36761,2719.6,2719.0,0.36768]
[1724681531660,0.00551684,2719.7,2718.8,0.77045337]
[1724681531860,0.00551684,2719.7,2718.9,4.17040673]
[1724681532055,0.00551684,2719.7,2718.8,0.00335337]
[1724681532056,5.08,2719.3,2718.8,0.00335337]
[1724681532262,0.36767,2719.2,2718.8,0.00335337]
[1724681532458,0.36768,2719.1,2718.8,0.00335337]
[1724681532861,5.08,2719.3,2718.8,0.00335337]
[1724681532862,0.36769,2719.0,2718.8,0.00335337]
[1724681533459,5.08,2719.3,2718.8,0.37105337]
[1724681533669,3.2078,2719.4,2718.8,0.00335337]
[1724681534067,0.36767,2719.1,2718.8,0.00335337]
[1724681534265,9.28007636,2719.3,2718.8,0.00335337]
[1724681534266,0.36769,2719.0,2718.8,0.00335337]
[1724681534463,0.36768,2719.1,2718.8,0.00335337]
[1724681534966,9.28007636,2719.3,2718.8,0.00335337]
[1724681534967,0.36769,2719.0,2718.8,0.00335337]
[1724681535163,9.28007636,2719.3,2718.8,0.00335337]
[1724681535674,0.36767,2719.1,2718.8,0.00335337]
[1724681536064,9.28007636,2719.3,2718.8,0.00335337]
[1724681536370,6.17571684,2719.7,2718.9,0.36769]
[1724681536561,0.36763,2719.5,2719.0,0.36768]
[1724681536762,9.26541772,2719.6,2719.0,0.36768]
[1724681537070,0.36762,2719.5,2719.0,0.36768]
[1724681537371,0.36762,2719.5,2719.1,0.36767]
[1724681537767,9.26541772,2719.6,2718.8,0.00335337]
[1724681537966,0.00551684,2719.7,2718.8,0.00335337]
[1724681538169,0.00551684,2719.7,2719.1,0.36767]
[1724681538375,0.91902,2719.6,2718.9,0.36769]
[1724681538672,0.36767,2719.2,2718.9,0.36769]
[1724681538869,0.36765,2719.3,2718.9,0.36769]
[1724681539072,0.36765,2719.3,2719.0,0.36768]
[1724681539265,0.91905,2719.5,2718.8,0.00335337]
[1724681539474,0.91905,2719.5,2718.8,0.37106337]
[1724681540171,0.36767,2719.2,2718.8,0.37106337]
[1724681540562,5.8363,2719.6,2718.8,0.37106337]
[1724681540563,0.91909,2719.4,2718.8,0.00335337]
[1724681540764,0.36769,2719.0,2718.8,0.00335337]
[1724681540966,0.3677,2718.9,2718.8,0.00335337]
[1724681541165,0.36769,2719.0,2718.8,0.00335337]
[1724681542068,0.3677,2718.9,2718.8,0.00335337]
[1724681542465,0.36769,2719.0,2718.8,0.00335337]
[1724681542666,0.91918,2719.2,2718.8,0.00335337]
[1724681542667,0.3677,2718.9,2718.8,0.00335337]
[1724681542873,4.96536,2718.9,2718.8,0.00335337]
[1724681543073,4.59769,2718.8,2718.2,3.5785]
[1724681543271,0.91942,2718.5,2717.6,0.3814]
[1724681543467,0.3678,2718.2,2717.9,0.36783]
[1724681543670,0.3678,2718.2,2717.6,0.745]
[1724681543872,0.3678,2718.2,2717.9,0.36783]
[1724681544074,3.57554,2718.6,2717.9,0.9239161]
[1724681544379,0.37326684,2718.5,2718.2,0.36778]
[1724681544673,0.00551684,2718.5,2717.9,0.0043261]
[1724681544880,0.00551684,2718.5,2717.9,0.3721561]
[1724681545178,0.3678,2718.2,2717.9,0.3721561]
[1724681545374,0.36782,2718.0,2717.9,0.0043261]
[1724681545771,0.36821684,2718.5,2717.9,0.0043261]
[1724681545971,0.36778,2718.3,2718.0,0.36782]
[1724681546371,0.36778,2718.3,2718.0,0.36781]
[1724681546676,0.36778,2718.4,2718.2,0.36779]
[1724681546876,0.36778,2718.3,2718.1,0.3678]
[1724681547073,0.36778,2718.4,2718.1,0.3678]
[1724681547269,0.36778,2718.4,2718.2,0.36779]
[1724681547579,0.36779,2718.3,2718.1,0.3678]
[1724681548082,0.36778,2718.3,2717.9,0.0043261]
[1724681548582,0.91943,2718.4,2718.0,0.36782]
[1724681548782,0.91943,2718.4,2717.9,0.0043261]
[1724681548783,1.28738,2718.0,2717.9,0.0043261]
[1724681549173,9.96658,2718.0,2717.9,0.0043261]
[1724681549977,4.04702,2718.0,2717.9,0.0043261]
[1724681550478,9.96658,2718.0,2717.9,0.0043261]
[1724681550668,1.28742,2717.9,2717.8,0.00551684]
[1724681550864,4.96662,2717.9,2717.8,0.00551684]
[1724681551075,9.96662,2717.9,2717.8,0.00551684]
[1724681551376,0.91963,2717.8,2717.0,0.36794]
[1724681551567,0.36791,2717.4,2717.2,0.36792]
[1724681552171,0.9197,2717.6,2717.0,0.00335959]
[1724681552375,9.61398985,2717.7,2717.0,0.37682643]
[1724681552376,0.36794,2717.2,2717.0,0.37682643]
[1724681552677,0.36793,2717.3,2717.0,0.37682643]
[1724681552976,0.36793,2717.3,2717.0,0.00887643]
[1724681553183,0.36793,2717.3,2717.0,0.37682643]
[1724681553474,0.36791,2717.4,2717.1,0.36794]
[1724681554973,1.30596,2717.7,2717.0,0.37682643]
[1724681554974,0.36793,2717.3,2717.0,0.37682643]
[1724681555374,0.36794,2717.1,2717.0,0.00887643]
[1724681555579,0.36794,2717.2,2717.0,0.37682643]
[1724681555775,0.36794,2717.2,2717.0,0.00887643]
[1724681556080,0.36794,2717.1,2717.0,0.00887643]
[1724681556876,0.36794,2717.2,2717.0,0.37683643]
[1724681557070,3.2078,2717.4,2717.0,0.00887643]
[1724681557274,3.2078,2717.4,2717.3,0.36792]
[1724681557471,3.57571,2717.4,2717.2,0.36792]
[1724681558380,3.57571,2717.4,2717.0,0.00887643]
[1724681558381,3.5757,2717.4,2717.3,0.36792]
[1724681558682,0.36793,2717.2,2717.0,0.37682643]
[1724681558978,0.36794,2717.2,2717.0,0.00887643]
[1724681559170,0.36794,2717.1,2717.0,0.00887643]
[1724681559366,4.12759,2717.4,2717.0,0.00887643]
[1724681559579,0.36794,2717.1,2717.0,0.00887643]
[1724681559972,0.36794,2717.1,2717.0,0.37683643]
[1724681560279,0.36794,2717.1,2717.0,0.00887643]
[1724681560481,0.36794,2717.2,2717.0,0.37682643]
[1724681560977,4.12759,2717.4,2717.0,0.00887643]
[1724681561182,3.2078,2717.4,2717.0,0.00887643]
[1724681561381,3.2078,2717.4,2717.0,0.37682643]
[1724681561777,0.36794,2717.1,2717.0,0.00887643]
[1724681562584,0.36794,2717.1,2717.0,0.37681643]
[1724681562974,4.12758,2717.4,2717.0,0.37681643]
[1724681563380,0.36794,2717.1,2717.0,0.00887643]
[1724681563583,0.36794,2717.1,2717.0,0.37683643]
[1724681563879,0.36794,2717.1,2717.0,0.00887643]
[1724681564074,0.36794,2717.1,2717.0,0.37683643]
[1724681564470,0.36794,2717.1,2717.0,0.00887643]
[1724681564982,4.04874,2717.1,2717.0,0.00887643]
[1724681565376,4.96861,2717.1,2717.0,0.00887643]
[1724681566079,5.88848,2717.1,2717.0,0.00887643]
[1724681566489,4.96861,2717.1,2717.0,0.00887643]
[1724681567188,1.28781,2717.1,2717.0,0.00887643]
[1724681567486,4.96861,2717.1,2717.0,0.00887643]
[1724681567889,5.88848,2717.1,2717.0,0.00887643]
[1724681568385,4.96861,2717.1,2717.0,0.00887643]
[1724681569380,4.04874,2717.1,2717.0,0.37683643]
[1724681569582,0.36794,2717.1,2717.0,0.00887643]
[1724681569781,4.96861,2717.1,2717.0,0.37683643]
[1724681569982,4.04874,2717.1,2717.0,0.37683643]
[1724681570282,3.6808,2717.1,2717.0,0.00887643]
[1724681570485,3.2078,2717.4,2717.0,0.00887643]
[1724681570690,7.5,2717.3,2717.0,0.00887643]
[1724681571192,3.68,2717.2,2717.0,0.00887643]
[1724681571583,3.2078,2717.4,2717.0,0.00887643]
[1724681576581,4.187,2717.6,2717.0,8.21667643]
[1724681576891,3.82,2718.4,2717.0,8.21667643]
[1724681576892,3.2078,2718.3,2717.3,3.2078]
[1724681577190,3.2078,2718.3,2717.4,8.04549249]
[1724681577489,3.2078,2718.3,2717.5,3.68]
[1724681577790,3.2078,2718.3,2717.4,8.06973618]
[1724681578099,3.2078,2718.3,2717.6,3.91481941]
[1724681578296,3.21247842,2718.3,2717.5,4.09696518]
[1724681578487,3.21247842,2718.3,2717.5,0.18214577]
[1724681578990,0.00467842,2718.3,2717.6,3.90139924]
[1724681579185,0.00467842,2718.3,2717.7,0.3618]
[1724681579389,0.00467842,2718.3,2717.8,0.3609]
[1724681580899,0.00467842,2718.3,2717.9,7.6925267]
[1724681581196,0.00467842,2718.3,2718.0,3.6792]
[1724681581388,0.00467842,2718.3,2718.1,0.3593]
[1724681581585,0.00467842,2718.3,2718.1,4.0385]
[1724681581785,0.00467842,2718.3,2718.2,3.6792]
[1724681582988,0.00467842,2718.3,2718.2,8.6792]
[1724681583595,0.00467842,2718.3,2718.2,3.6792]
[1724681584193,0.00467842,2718.3,2718.2,8.6792]
[1724681584392,0.00551684,2718.5,2718.2,8.6792]
[1724681584695,7.4034,2719.5,2718.3,7.4984]
[1724681584891,7.4034,2719.5,2718.3,4.201]
[1724681585090,7.4034,2719.5,2718.4,3.88005262]
[1724681585294,7.4034,2719.5,2718.5,0.3801]
[1724681585295,4.1956,2719.5,2718.5,0.3801]
[1724681585487,0.35847433,2719.4,2718.5,0.3801]
[1724681585691,0.00551684,2719.2,2718.7,0.00551684]
[1724681588094,3.2078,2719.0,2718.7,0.00551684]
[1724681588293,3.2078,2719.0,2718.1,0.3593]
[1724681588294,4.5533,2718.9,2718.1,0.3593]
[1724681588596,4.5533,2718.9,2717.9,0.3541]
[1724681588597,3.82,2718.5,2717.9,0.3541]
[1724681588791,3.2078,2718.0,2717.7,0.3797]
[1724681588997,3.2078,2718.0,2717.3,0.3541]
[1724681589298,3.2078,2718.0,2717.3,0.7338]
[1724681589500,0.00551684,2717.9,2717.4,0.00551684]
[1724681591106,3.2078,2717.8,2717.4,0.00551684]
[1724681591309,6.8878,2717.8,2717.4,0.00551684]
[1724681591494,3.68,2717.7,2717.4,0.00551684]
[1724681592007,3.2078,2717.8,2717.4,0.00551684]
[1724681592008,3.68,2717.6,2717.4,0.00551684]
[1724681592209,0.3618,2717.5,2717.4,0.00551684]
[1724681592704,3.2078,2717.8,2717.4,0.00551684]
[1724681593597,3.68,2717.7,2717.4,0.00551684]
[1724681594099,4.0356,2717.6,2717.4,0.00551684]
[1724681594300,0.3556,2717.6,2717.4,0.00551684]
[1724681594498,3.68,2717.5,2717.0,0.00335959]
[1724681594804,3.2078,2717.5,2717.0,0.00335959]
[1724681597104,5.09,2717.2,2716.1,0.3684]
[1724681597307,0.7413,2717.1,2716.1,0.3684]
[1724681597495,9.77474604,2717.1,2716.1,0.3684]
[1724681598103,9.7781814,2717.1,2716.1,0.37298747]
[1724681598408,9.7781814,2717.1,2716.1,0.00458747]
[1724681599509,5.09,2716.8,2716.1,0.00458747]
[1724681599708,0.3731,2716.7,2716.1,0.00458747]
[1724681600411,0.74473536,2717.1,2716.1,0.00458747]
[1724681600811,9.14026724,2717.0,2716.1,0.00458747]
[1724681601405,0.74473536,2717.1,2716.1,0.00458747]
[1724681601605,0.74473536,2717.1,2716.2,3.97856412]
[1724681601803,0.74473536,2717.1,2716.2,4.32926412]
[1724681602114,9.00836259,2717.0,2716.2,0.3507]
[1724681602508,0.74473536,2717.1,2716.2,0.3507]
[1724681603311,0.00343536,2717.1,2716.2,0.3507]
[1724681603502,0.00343536,2717.1,2716.3,0.352]
[1724681603907,0.00343536,2717.1,2716.4,0.379]
[1724681606207,0.00343536,2717.1,2716.5,4.23269601]
[1724681607213,0.00343536,2717.1,2716.6,3.6808]
[1724681607607,0.00343536,2717.1,2716.4,0.379]
[1724681607608,0.00343536,2717.1,2716.7,4.04564073]
[1724681607807,0.00343536,2717.1,2716.4,0.379]
[1724681608814,0.00343536,2717.1,2716.2,0.3507]
[1724681609215,0.74793536,2717.1,2716.2,0.3507]
[1724681610017,0.3891,2717.0,2716.2,0.3507]
[1724681611106,0.35923536,2717.1,2716.2,0.3507]
[1724681611620,0.00343536,2717.1,2716.3,4.11695256]
[1724681613015,0.92330536,2717.1,2716.3,5.03708256]
[1724681613217,0.36798,2716.9,2716.7,0.36799]
[1724681613523,0.9199,2717.0,2716.6,0.368]
[1724681613817,0.36801,2716.6,2716.5,0.36801]
[1724681614024,0.36801,2716.7,2716.6,0.36801]
[1724681614428,0.00343536,2717.1,2716.7,0.368]
[1724681614429,0.36799,2716.8,2716.7,0.368]
[1724681614928,0.368,2716.8,2716.7,0.368]
[1724681615426,0.368,2716.8,2716.6,0.368]
[1724681615627,0.91994,2716.9,2716.6,0.36801]
[1724681615821,0.00343536,2717.1,2716.2,0.3507]
[1724681615822,0.36802,2716.6,2716.2,0.3507]
[1724681616124,0.36802,2716.6,2716.5,0.36802]
[1724681616523,0.36801,2716.7,2716.6,0.36801]
[1724681617614,3.6808,2716.7,2716.2,0.3507]
[1724681617818,0.00343536,2717.1,2716.2,0.3507]
[1724681617819,0.36805,2716.3,2716.2,0.3507]
[1724681618015,0.36805,2716.4,2716.2,0.3507]
[1724681618220,0.36804,2716.4,2716.3,0.36804]
[1724681618427,0.00551684,2716.5,2716.4,0.36804]
[1724681619726,0.00551684,2716.5,2716.4,4.04964]
[1724681620026,0.37353684,2716.5,2716.4,0.36804]
[1724681620232,0.00551684,2716.5,2716.4,4.04964]
[1724681620729,0.00551684,2716.5,2716.4,4.96974]
[1724681622518,0.00551684,2716.5,2716.4,10.88984]
[1724681622719,0.00343536,2717.1,2717.0,0.36796]
[1724681624029,0.00343536,2717.1,2717.0,4.04876]
[1724681624229,0.00551684,2717.3,2717.0,12.8085]
[1724681624537,3.2078,2718.3,2718.0,0.36781]
[1724681624730,3.2078,2718.3,2717.2,3.82]
[1724681624921,3.2078,2718.3,2717.0,12.00599044]
[1724681624922,3.2078,2718.3,2717.5,0.3636]
[1724681625119,3.2078,2718.3,2717.6,0.36787]
[1724681625419,0.36784,2717.9,2717.6,0.75017]
[1724681625831,3.82,2718.1,2717.6,0.3823]
[1724681626025,0.36786,2717.7,2717.6,0.3823]
[1724681627230,0.91956,2718.0,2717.6,0.3823]
[1724681627231,0.36786,2717.8,2717.6,0.3823]
[1724681627630,0.36784,2717.9,2717.6,0.75017]
[1724681627825,4.5526,2718.1,2717.6,0.3823]
[1724681628038,0.36784,2717.9,2717.6,0.75017]
[1724681628232,0.36785,2717.8,2717.6,0.3823]
[1724681628433,0.36783,2718.0,2717.7,0.36786]
[1724681628733,4.5526,2718.1,2717.6,0.75017]
[1724681628925,0.36786,2717.8,2717.6,0.3823]
[1724681629127,0.36785,2717.8,2717.0,3.5801]
[1724681629333,0.7326,2718.1,2717.7,0.36786]
[1724681629531,0.36784,2717.9,2717.7,0.36786]
[1724681629841,0.36783,2718.0,2717.7,0.36786]
[1724681630329,4.19251684,2718.2,2717.5,0.36788]
[1724681630533,4.19251684,2718.2,2717.6,0.36787]
[1724681630736,0.36784,2717.9,2717.7,0.36786]
[1724681631128,0.36784,2717.9,2717.8,0.36785]
[1724681631329,0.36784,2717.9,2717.7,0.36786]
[1724681631629,0.36785,2717.8,2717.6,0.36787]
[1724681631931,0.36785,2717.8,2717.2,0.91983]
[1724681632238,0.36784,2717.9,2717.7,0.36786]
[1724681632733,4.19251684,2718.2,2717.2,0.91983]
[1724681632928,0.36781,2718.1,2717.3,0.9198]
[1724681633128,0.00551684,2718.2,2717.4,3.82]
[1724681633329,0.00551684,2718.2,2718.1,0.36781]
[1724681633534,0.00551684,2718.2,2718.1,1.11023871]
[1724681633937,6.22755,2719.0,2718.1,0.74242871]
[1724681633938,4.5418,2719.0,2718.1,0.74242871]
[1724681634231,0.36773,2718.7,2718.5,0.36775]
[1724681634433,0.3548,2719.0,2718.4,0.36776]
[1724681634822,0.3548,2719.0,2718.1,0.74242871]
[1724681635023,0.36777,2718.5,2718.3,0.37328684]
[1724681635633,0.36777,2718.5,2718.4,0.36777]
[1724681635829,0.36775,2718.6,2718.3,0.00551684]
[1724681636030,0.00551684,2718.8,2718.3,0.00551684]
[1724681636230,0.00551684,2718.8,2718.7,0.36773]
[1724681637140,0.37322684,2718.8,2718.7,0.36773]
[1724681637435,0.00551684,2718.8,2718.7,0.36773]
[1724681637937,0.00551684,2718.8,2718.7,1.28706]
[1724681638132,0.00551684,2718.8,2718.7,1.66456]
[1724681638527,0.00551684,2718.8,2718.7,0.74523]
[1724681640334,0.00551684,2718.8,2718.7,0.3775]
[1724681640540,0.00551684,2718.8,2718.7,0.74523]
[1724681640734,0.00551684,2718.8,2718.7,0.3775]
[1724681641636,0.37322684,2718.8,2718.7,0.3775]
[1724681641844,0.00551684,2718.8,2718.7,0.74523]
[1724681642136,0.00551684,2718.8,2718.7,4.42363]
[1724681643434,0.37322684,2718.8,2718.7,0.3775]
[1724681643634,0.37322684,2718.8,2718.6,3.2078]
[1724681643635,0.00551684,2718.8,2718.6,3.2078]
[1724681644036,0.00551684,2718.8,2718.7,0.36773]
[1724681644234,0.36773,2718.7,2718.6,3.2078]
[1724681644431,0.37323684,2718.8,2718.6,3.57554]
[1724681644640,0.36773,2718.7,2718.6,3.2078]
[1724681645039,0.00551684,2718.8,2718.6,3.57554]
[1724681645250,0.00551684,2718.8,2718.6,3.2078]
[1724681645430,0.00551684,2718.8,2718.7,0.36773]
[1724681645636,0.00551684,2718.8,2718.6,3.57553]
[1724681645945,0.37322684,2718.8,2718.6,3.57553]
[1724681646245,0.00551684,2718.8,2718.6,3.57553]
[1724681646445,0.37323684,2718.8,2718.6,3.57554]
[1724681646841,0.00551684,2718.8,2718.7,0.36773]
[1724681648159,0.37323684,2718.8,2718.6,3.2078]
[1724681648445,0.37323684,2718.8,2718.6,3.57554]
[1724681648646,0.00551684,2718.8,2718.6,3.57554]
[1724681648840,0.37322684,2718.8,2718.6,3.57554]
[1724681649343,0.36773,2718.7,2718.6,3.2078]
[1724681649848,0.37323684,2718.8,2718.6,3.57554]
[1724681650145,0.00551684,2718.8,2718.6,3.2078]
[1724681650449,0.00551684,2718.8,2718.7,0.36773]
[1724681651342,0.36773,2718.7,2718.6,3.2078]
[1724681651548,0.36777,2718.4,2718.3,0.00551684]
[1724681651738,1.2872,2718.4,2718.3,0.00551684]
[1724681652042,0.36779,2718.2,2718.1,0.00462871]
[1724681652343,1.28728,2718.2,2718.1,0.00462871]
[1724681652540,4.96648,2718.2,2718.1,0.00462871]
[1724681652745,5.32208,2718.2,2718.1,0.00462871]
[1724681654145,0.36776,2718.5,2718.1,0.00462871]
[1724681654337,0.36777,2718.4,2718.1,0.00462871]
[1724681654536,0.36776,2718.5,2718.1,0.00462871]
[1724681654743,3.2078,2718.7,2718.5,0.36775]
[1724681655249,3.57554,2718.7,2718.5,0.36775]
[1724681655450,0.36774,2718.6,2718.5,0.36775]
[1724681655746,0.36778,2718.3,2718.2,0.72399]
[1724681656050,0.3678,2718.2,2718.1,0.00462871]
[1724681656745,4.9665,2718.2,2718.1,0.00462871]
[1724681656946,9.9665,2718.2,2718.1,0.00462871]
[1724681657145,9.047,2718.2,2718.1,0.00462871]
[1724681657343,4.047,2718.2,2718.1,0.00462871]
[1724681657752,0.3678,2718.2,2718.1,0.00462871]
[1724681657942,4.047,2718.2,2718.1,0.00462871]
[1724681658343,0.3678,2718.2,2718.1,0.00462871]
[1724681658544,4.047,2718.2,2718.1,0.00462871]
[1724681663744,4.9665,2718.2,2718.1,0.00462871]
[1724681663948,5.6822,2718.2,2718.1,0.00462871]
[1724681665647,0.36782,2718.0,2717.9,0.00551684]
[1724681666048,4.96658,2718.0,2717.9,0.00551684]
[1724681666244,4.96658,2718.0,2717.2,0.3769]
[1724681666245,0.36786,2717.8,2717.2,0.3769]
[1724681666453,0.91956,2718.0,2717.5,0.36788]
[1724681666653,0.91956,2718.0,2717.5,0.00472151]
[1724681666955,5.10653,2718.1,2717.5,0.00472151]
[1724681667161,0.9196,2717.9,2717.5,0.00472151]
[1724681667453,0.36788,2717.6,2717.5,0.00472151]
[1724681667848,5.12468,2717.6,2717.5,0.01023835]
[1724681668754,6.04438,2717.6,2717.5,0.01023835]
[1724681669462,5.12468,2717.6,2717.5,0.01023835]
[1724681671867,6.04438,2717.6,2717.5,0.01023835]
[1724681672853,0.36797,2717.0,2716.8,0.74638]
[1724681673270,0.91983,2717.3,2716.9,0.36797]
[1724681673957,0.9227885,2717.3,2716.9,0.37097609]
[1724681674362,0.9227885,2717.3,2716.9,0.00300609]
[1724681674664,0.36796,2717.0,2716.9,0.00300609]
[1724681674969,1.28786,2717.0,2716.9,0.00300609]
[1724681675159,4.96866,2717.0,2716.9,0.00300609]
[1724681675466,4.04876,2717.0,2716.9,0.00300609]
[1724681676160,4.04876,2717.0,2716.9,0.37097609]
[1724681676161,3.6808,2717.0,2716.9,0.37097609]
[1724681676362,0.36796,2717.0,2716.9,0.37097609]
[1724681677161,0.36796,2717.0,2716.9,0.00300609]
[1724681677359,0.36796,2717.0,2716.9,0.37097609]
[1724681677566,0.36795,2717.1,2717.0,0.36796]
[1724681677763,0.0029585,2717.3,2717.0,0.36796]
[1724681677967,0.0029585,2717.3,2717.2,0.36793]
[1724681678665,0.0029585,2717.3,2717.2,4.04793]
[1724681678960,0.0029585,2717.3,2717.2,0.73673]
[1724681679562,0.0029585,2717.3,2717.2,1.10653]
[1724681679763,3.2078,2718.2,2717.3,3.68]
[1724681679966,3.2078,2718.2,2717.2,12.7664]
[1724681679967,3.2078,2718.2,2718.0,0.36781]
[1724681680467,0.36783,2718.0,2717.6,0.91968]
[1724681680675,0.36785,2718.0,2717.9,0.36785]
[1724681680864,0.37108227,2718.0,2717.9,0.36785]
[1724681681168,0.00323227,2718.0,2717.7,0.00551684]
[1724681681372,0.00323227,2718.0,2717.9,0.36785]
[1724681682873,0.00323227,2718.0,2717.9,0.72425]
[1724681684564,0.37107227,2718.0,2717.9,0.72425]
[1724681684964,0.37107227,2718.0,2717.9,0.3564]
[1724681685160,2.20723,2717.8,2717.7,0.00551684]
[1724681685378,0.36792,2717.4,2717.3,0.3555]
[1724681685562,4.73982,2717.4,2716.9,0.00300609]
[1724681685878,1.28793,2717.0,2716.9,0.00300609]
[1724681686062,0.36798,2717.0,2716.9,0.00300609]
[1724681686263,4.04878,2717.0,2716.9,0.00300609]
[1724681686861,0.36798,2717.0,2716.9,0.00300609]
[1724681687168,4.04878,2717.0,2716.9,0.00300609]
[1724681687372,0.36798,2717.0,2716.9,0.00300609]
[1724681688072,0.3671,2717.3,2716.9,0.00300609]
[1724681688275,0.36796,2717.2,2716.9,0.37098609]
[1724681688573,0.36796,2717.1,2716.9,0.00300609]
[1724681689068,0.36798,2717.0,2716.9,0.00300609]
[1724681689469,0.36797,2717.1,2716.9,0.00300609]
[1724681689872,0.36796,2717.2,2716.9,0.37099609]
[1724681690177,0.36796,2717.1,2716.9,0.37099609]
[1724681691379,0.36798,2717.0,2716.9,0.00300609]
[1724681691679,0.36797,2717.1,2716.9,0.37099609]
[1724681692266,0.36797,2717.1,2717.0,0.3566]
[1724681692773,0.36798,2717.0,2716.9,0.00300609]
[1724681693081,0.36797,2717.1,2716.9,0.37098609]
[1724681693480,0.36797,2717.1,2716.9,0.00300609]
[1724681693680,0.36796,2717.2,2717.0,0.36797]
[1724681695085,10.7078,2717.1,2716.9,0.00300609]
[1724681695386,10.7078,2717.1,2716.3,1.43966355]
[1724681695387,0.36806,2716.4,2716.3,0.3797]
[1724681696190,0.36806,2716.4,2716.3,0.38304587]
[1724681697781,0.00551684,2716.6,2716.3,0.38304587]
[1724681697988,0.36805,2716.5,2716.3,0.75110587]
[1724681698188,0.00551684,2716.6,2716.4,0.36805]
[1724681698378,0.37354684,2716.6,2716.3,0.75110587]
[1724681698573,0.36804,2716.5,2716.3,0.75110587]
[1724681698880,0.36805,2716.5,2716.3,0.38304587]
[1724681699076,0.36806,2716.4,2716.3,0.38304587]
[1724681699383,0.00551684,2716.6,2716.3,0.75111587]
[1724681699384,0.37355684,2716.6,2716.3,0.75111587]
[1724681699579,0.37355684,2716.6,2716.4,0.36805]
[1724681699883,0.37355684,2716.6,2716.3,0.75110587]
[1724681699884,0.36805,2716.5,2716.3,0.75110587]
[1724681700196,0.36806,2716.4,2716.3,0.38304587]
[1724681700979,1.28821,2716.4,2716.3,0.38304587]
[1724681701184,1.28821,2716.4,2716.3,0.00334587]
[1724681701682,4.49601,2716.4,2716.3,0.00334587]
[1724681701885,5.41616,2716.4,2716.3,0.00334587]